Cogmind - Beta 10.2 @@@ ROGUE MODE // 2021.09.13 @ 18:37:03 Player: cavemonk Result: Destroyed by as-17611 with Assembled Rifle Performance ------------- Evolutions (0) 0 Regions Visited (2) 400 Robots Destroyed (18) 90 Value Destroyed (337) 337 Prototype IDs (5) 100 Alien Tech Used (0) 0 Bonus (0) 0 TOTAL SCORE: 927 Bonus ------- None Cogmind --------- Core Integrity 0/250 Matter 295/300 Energy 60/100 System Corruption 0% Temperature Cool (76) Movement Core (600) Ox11 Location -10/Mines Parts ------- > --- POWER (1) -------- (None) > --- PROPULSION (2) --- (None) > --- UTILITY (2) ------ High-capacity Storage Unit Improved Targeting Computer > --- WEAPON (2) ------- Light EM Pulse Cannon > --- INVENTORY (12) --- Ion Engine Ion Engine Light Treads Wheel Large Storage Unit High-capacity Storage Unit High-capacity Storage Unit EM Shotgun Light EM Pulse Cannon Mining Laser Peak State ------------ > --- POWER ------------ Ion Engine > --- PROPULSION ------- Light Treads Wheel > --- UTILITY ---------- Large Storage Unit Improved Terrain Scanner > --- WEAPON ----------- EM Shotgun EM Shotgun > --- INVENTORY -------- Light Ion Engine Light Treads High-capacity Storage Unit EM Shotgun EM Shotgun Assault Rifle Assault Rifle Mining Laser [Rating: 11] Favorites ----------- Power Ion Engine Engine Ion Engine Propulsion Light Treads Treads Light Treads Leg Aluminum Leg Wheel Wheel Utility Improved Targeting Computer Device Improved Terrain Scanner Storage Large Storage Unit Processor Improved Targeting Computer Weapon EM Shotgun Energy Gun EM Shotgun Energy Cannon Light EM Pulse Cannon Ballistic Gun Assault Rifle Special Weapon Mining Laser Build | -11 -10 -10 ------- Run | Scr Mat Min Slots Evolved . | . . . Power . | . . . Propulsion . | . . . Utility . | . . . Weapon . | . . . Parts Attached 21 | 3 17 1 Power . | . . . Engine . | . . . Core . | . . . Reactor . | . . . Propulsion 5 | 2 3 . Treads 3 | 1 2 . Leg . | . . . Wheel 2 | 1 1 . Hover . | . . . Flight . | . . . Utility 5 | 1 4 . Device 1 | 1 . . Storage 3 | . 3 . Processor 1 | . 1 . Hackware . | . . . Protection . | . . . Artifact . | . . . Weapon 11 | . 10 1 Energy Gun 7 | . 7 . Energy Cannon 1 | . . 1 Ballistic Gun . | . . . Ballistic Cannon . | . . . Launcher . | . . . Special Weapon 3 | . 3 . Impact Weapon . | . . . Slashing Weapon . | . . . Piercing Weapon . | . . . Special Melee Weapon . | . . . Unidentified Prototypes . | . . . Parts Lost 6 | . 1 5 Power 1 | . . 1 Propulsion 2 | . . 2 Utility . | . . . Weapon 3 | . 1 2 Highest Loss Streak 5 | . 1 5 Average Slot Usage (%) 99 | . 99 90 Engine 13 | . 14 11 Treads 17 | . 17 23 Wheel 10 | . 10 . Storage 14 | . 14 14 Processor 13 | . 13 14 Energy Gun 23 | . 23 23 Ballistic Gun 1 | . 1 . Special Weapon 2 | . 2 . Naked Turns . | . . . Heaviest Build 43 | 14 43 43 Greatest Support 40 | 20 40 40 Greatest Overweight (x) 4 | 1 4 1 Average Overweight (x) 1 | . 1 1 Largest Inventory Capacity 12 | 6 12 12 Average Capacity 10 | 6 10 12 Most Carried 12 | 6 12 12 Average Carried 10 | 5 10 11 Final Capacity 12 | 6 12 12 Final Carried 12 | 6 12 10 Class Distribution -------------------- 100% | Mutant Dominant Class ---------------- Mutant | -10/Materials Mutant | -10/Mines Resources | -11 -10 -10 ----------- Run | Scr Mat Min Matter Collected 420 | 248 172 . Remotely . | . . . Salvage Created 564 | 51 513 . Parts 41 | 9 32 . Haulers Intercepted 1 | . 1 . Recyclers Shooed . | . . . Parts Field Recycled . | . . . Retrieved Matter . | . . . Parts Self-Destructed . | . . . Prevented . | . . . Kills | -11 -10 -10 ------- Run | Scr Mat Min Combat Hostiles Destroyed 12 | . 12 . Guns 10 | . 10 . AOE 2 | . 2 . Classes Destroyed 6 | 1 5 . Worker 1 | . 1 . Tunneler 2 | 2 . . Hauler 1 | . 1 . Watcher 2 | . 2 . Swarmer 5 | . 5 . Grunt 7 | . 7 . Best Kill Streak 5 | 1 5 . Combat Bots Only 5 | . 5 . Max Kills in Single Turn 3 | 1 3 . Gunslinging . | . . . Exploded 2 | . 2 . Melee . | . . . Uniques/NPCs Destroyed . | . . . Combat | -11 -10 -10 -------- Run | Scr Mat Min Damage Taken 831 | . 306 525 Core 261 | . 56 205 Absorbed by Shields . | . . . Core Remaining (%) 100 | 100 . . Volleys Fired 39 | 3 31 5 Largest 2 | 2 2 2 Hottest 100 | 40 100 90 Shots Fired 69 | 6 55 8 Gun 60 | 6 48 6 Cannon 2 | . . 2 Launcher . | . . . Special 7 | . 7 . Kinetic 8 | 6 2 . Thermal 7 | . 7 . Explosive . | . . . Electromagnetic 54 | . 46 8 Robot Hit Streak 19 | 2 19 4 Robot Miss Streak 4 | 2 2 4 Penetration Max . | . . . Secondary Targets 2 | . 2 . Max Gunslinging Chain 1 | . 1 . Shots Hit Robots 30 | 3 21 6 Core Hits 34 | 2 27 5 Critical Hits . | . . . Critical Kills . | . . . Critical Parts Destroyed . | . . . Melee Attacks . | . . . Impact . | . . . Slashing . | . . . Piercing . | . . . Sneak Attacks . | . . . Combat Hostiles . | . . . Follow-up Attacks . | . . . Damage Inflicted 918 | 47 784 87 Guns 711 | 47 615 49 Cannons 38 | . . 38 Explosions 167 | . 167 . Melee . | . . . Ramming 2 | . 2 . Kinetic 62 | 47 15 . Thermal 167 | . 167 . Explosive . | . . . Electromagnetic 687 | . 600 87 Impact . | . . . Slashing . | . . . Piercing . | . . . Highest Corruption . | . . . Average Corruption . | . . . Corruption Purged . | . . . Overload Shots . | . . . Overflow Damage . | . . . Projectiles . | . . . Explosions . | . . . Melee . | . . . Knockbacks . | . . . Impact . | . . . Kinetic . | . . . Secondary . | . . . Self-Inflicted Damage 97 | . 97 . Shots 3 | . 3 . Rammed 1 | . 1 . Targets Rammed 1 | . 1 . Kicked . | . . . Crushed . | . . . Highest Temperature 246 | . 246 90 Average Temperature 71 | . 73 55 Received Heat Transfer 66 | . 66 . Siege Activations . | . . . Robots Corrupted . | . . . Combat Hostiles . | . . . Parts Fried 3 | . 3 . Impact Corruptions . | . . . Robots Melted . | . . . Combat Hostiles . | . . . Parts Melted . | . . . Heat Transferred 150 | . 150 . Parts Sabotaged . | . . . Parts Stolen . | . . . Parts Stripped . | . . . Power Chain Reactions 3 | . 3 . Missiles Intercepted . | . . . Alert | -11 -10 -10 ------- Run | Scr Mat Min Peak Influence 166 | 10 166 51 Initial 51 | . 6 51 Average 55 | 5 57 47 Maximum Alert Level . | . . . Low Security (%) 100 | 100 100 100 Level 1 . | . . . Level 2 . | . . . Level 3 . | . . . Level 4 . | . . . Level 5 . | . . . High Security . | . . . Max Security . | . . . Squads Dispatched 3 | . 3 . Investigation 3 | . 3 . Extermination . | . . . Reinforcement . | . . . Assault . | . . . Garrison . | . . . Intercept . | . . . Construction Impeded . | . . . Haulers Reinforced . | . . . Stealth | -11 -10 -10 --------- Run | Scr Mat Min Distress Signals . | . . . Communications Jammed . | . . . Distress Signals . | . . . Times Spotted 25 | . 16 9 Peak Tracking Total 9 | . 5 9 Tactical Retreats 1 | . 1 . Traps | -11 -10 -10 ------- Run | Scr Mat Min Traps Triggered 1 | . 1 . Indirectly . | . . . Trap Hack Attempts . | . . . Triggered . | . . . Disarmed . | . . . Reprogrammed . | . . . Reused . | . . . Traps Extracted . | . . . Installed . | . . . Triggered . | . . . Machines | -11 -10 -10 ---------- Run | Scr Mat Min Machines Disabled . | . . . Max in Single Turn . | . . . Machines Sabotaged . | . . . Garrisons Compromised . | . . . Overloaded Fab Kills . | . . . Fab Network Shutdowns . | . . . Hacking | -11 -10 -10 --------- Run | Scr Mat Min Machines Accessed 10 | . 10 . Terminals 7 | . 7 . Fabricators . | . . . Repair Stations 1 | . 1 . Recycling Units 2 | . 2 . Scanalyzers . | . . . Garrison Access . | . . . Total Hacks 36 | . 36 . Successful 22 | . 22 . Failed 14 | . 14 . Catastrophic 2 | . 2 . Database Lockouts . | . . . Manual 29 | . 29 . Terminals 32 | . 32 . Fabricators . | . . . Repair Stations 2 | . 2 . Recycling Units 2 | . 2 . Scanalyzers . | . . . Garrison Access . | . . . Terminal Hacks 13 | . 13 . Part Schematic 1 | . 1 . Robot Analysis 2 | . 2 . Prototype ID Bank 4 | . 4 . Branch Access Points 1 | . 1 . Terminal Index 1 | . 1 . Locate Traps 1 | . 1 . Registered Prototypes 1 | . 1 . Zone Layout 2 | . 2 . Fabricator Hacks . | . . . Repair Station Hacks 2 | . 2 . Scan Component 1 | . 1 . Repair 1 | . 1 . Recycling Unit Hacks . | . . . Scanalyzer . | . . . Garrison Access Hacks . | . . . Unauthorized Hacks 7 | . 7 . Terminals 5 | . 5 . Track 3 | . 3 . Botnet 1 | . 1 . Operators 1 | . 1 . Fabricators . | . . . Repair Stations . | . . . Recycling Units 2 | . 2 . Tunnel 2 | . 2 . Scanalyzers . | . . . Garrison Access . | . . . Data Cores Recovered . | . . . Used . | . . . Hacking Detections 8 | . 8 . Full Trace Events . | . . . Feedback Events . | . . . Feedback Blocked . | . . . Robot Schematics Acquired . | . . . Robots Built . | . . . Matter . | . . . Time . | . . . Total Robot Build Rating . | . . . Part Schematics Acquired 1 | . 1 . Parts Built . | . . . Matter . | . . . Time . | . . . Total Part Build Rating . | . . . Parts Repaired 1 | . 1 . Time 32 | . 32 . Parts Recycled . | . . . Recycled Matter . | . . . Retrieved Matter . | . . . Retrieved Components . | . . . Parts Scanalyzed . | . . . Part Schematics Acquired . | . . . Parts Damaged . | . . . Bothacking | -11 -10 -10 ------------ Run | Scr Mat Min Used RIF Installer . | . . . Robots Hacked . | . . . Non-combat . | . . . Combat . | . . . Robot Hacks Applied . | . . . Relay Couplers Released . | . . . Robots Rewired . | . . . Allies Hacked . | . . . Hacks Repelled . | . . . Allies | -11 -10 -10 -------- Run | Scr Mat Min Total Allies . | . . . Largest Group . | . . . Highest-Rated Group . | . . . Highest-Rated Ally . | . . . Total Orders . | . . . Ally Attacks . | . . . Total Damage . | . . . Kills . | . . . Allies Corrupted . | . . . Allies Melted . | . . . Intel | -11 -10 -10 ------- Run | Scr Mat Min Robot Analysis Total 2 | . 2 . Derelict Logs Recovered . | . . . Drone Launches . | . . . Drone Recoveries . | . . . Exploration | -11 -10 -10 ------------- Run | Scr Mat Min Turns Passed 1679 | 67 1556 56 Spaces Moved 725 | 25 676 24 Core . | . . . Treads 182 | . 158 24 Legs 8 | 8 . . Wheels 535 | 17 518 . Hover . | . . . Flight . | . . . Fastest Speed 90 | 90 90 180 Average Speed 121 | 99 119 180 Slowest Speed 200 | 120 200 180 Overloaded Moves . | . . . Propulsion Burnouts . | . . . Robots Hopped . | . . . Cave-ins Triggered . | . . . Exploration Rate (%) 36 | 3 96 11 Regions Visited 2 Branch Regions 1 Pre-discovered Areas 2 | . 2 . Known Exits Taken 1 | . 1 . Unknown Exits Taken 1 | 1 . . Scrap Searched . | . . . Spaces Dug 7 | . 7 . Terrain Destroyed 18 | . 18 . Melee . | . . . Projectile 7 | . 7 . AOE 11 | . 11 . Terrain Rammed . | . . . Walls Destroyed . | . . . Machines Disabled . | . . . Actions | -11 -10 -10 --------- Run | Scr Mat Min Total 1443 | 61 1351 31 Wait 628 | 27 601 . Move 723 | 24 675 24 Hop . | . . . Pick Up 14 | 2 12 . Fast Attach 7 | 1 6 . Attach 5 | 2 2 1 Detach 3 | . 3 . Swap 9 | . 9 . Drop 14 | 2 11 1 Fire 39 | 3 31 5 Melee . | . . . Ram . | . . . Kick . | . . . Crush 1 | . 1 . Escape Stasis . | . . . Rewire . | . . . Trap . | . . . Miscellaneous . | . . . Route ------- -11/Scrapyard -10/Materials (discovered 5 exits: [*Mat x3] / *Min x2) -10/Mines History --------- Turn | Location | Event 8 | -11/Scrapyard | Discovered new exit (range 3) 68 | -11/Scrapyard | Entered Materials 81 | -10/Materials | Identified exit to Mines 163 | -10/Materials | Discovered new exit (range 9) 302 | -10/Materials | Build established: Mutant 839 | -10/Materials | Discovered new exit (range 16) 1342 | -10/Materials | Discovered new exit (range 15) 1396 | -10/Materials | Repaired EM Shotgun 1624 | -10/Materials | Entered Mines 1656 | -10/Mines | Assembled infested the area 1676 | -10/Mines | Core integrity fell below 50% 1678 | -10/Mines | Core integrity fell below 20% 1680 | -10/Mines | Destroyed by as-17611 with Assembled Rifle Last Messages --------------- 01412_ S-10 Pest destroyed. 01412_ Switching to secondary target: S-10 Pest. 01415_ S-10 Pest destroyed. 01418_ Acquired 16 matter. 01420_ Acquired 20 matter. 01476_ Slammed into U-05 Engineer. 01507_ Connecting with Terminal... >>Inventory(Prototypes) Retrieving prototype inventory records... No registered prototype stockpiles. LOCATION=MINES GOAL=ESCAPE Something is scanning the area. 01656_ ALERT: Infestation in the mines, dispatching Demolisher response squad. 01675_ EM Shotgun destroyed. 01676_ Lgt. Treads destroyed. 01678_ Ion Engine destroyed. 01679_ as-61100 destroyed. 01680_ Dropped Hcp. Battery. Map ----- +----------------------------------------------------+ | ????????????????????????????????????????????????? | | ????????????????????????????????????????????????? | | ????????????????????????????????????????????????? | | ????????????????????????????????????????????????? | | ????????????????????????????????????????????????? | | ????????????????????????????????????????????????? | | ????????????????????????????????????????????????? | | ????????????????????????????????????????????????? | | ????????????????????????????????????????????????? | | ????????????????????????????????????????????????? | | ????????????????????????????????????????????????? | | ????????????????????????????????????????????????? | | ??????????????????? ???????????????????????????? | | ??????????????????# #? #???????????????????????? | | ??????????????##??# ## ##??????????????????????? | | ?????????????? #?## ??????????????????????? | | ?????????????# #?? ???????????????????????? | | ?????????????# #?? #???????????????????????? | | ?????????????# #??# ##??????????????????????? | | ?????????????# #### ##?????????????????????? | | ???????####### ? ###???????????????????? | | ???????# #??# ##??????????????????? | | ??????## !! #??# """" #??????#???????????? | | ?????## !! #?## """" #### ###?????????? | | ?????# ! #?# """" a #?????????? | | ?????# !! #?# aa@% #????????? | | ?????## ### aaaaa#### ?????? | | ??????## ## ##????????? #???????? | | ???????# ########## #?????????????????????? | | ???????## #????????## ##?????????????????????? | | ????????#####?????????####??????????????????????? | | ????????????????????????????????????????????????? | | ????????????????????????????????????????????????? | | ????????????????????????????????????????????????? | | ????????????????????????????????????????????????? | | ????????????????????????????????????????????????? | | ????????????????????????????????????????????????? | | ????????????????????????????????????????????????? | | ????????????????????????????????????????????????? | | ????????????????????????????????????????????????? | | ????????????????????????????????????????????????? | | ????????????????????????????????????????????????? | | ????????????????????????????????????????????????? | | ????????????????????????????????????????????????? | | ????????????????????????????????????????????????? | | ????????????????????????????????????????????????? | | | | | | | | | +----------------------------------------------------+ Best States ------------- Heat Dissipation 25 Energy Generation 10 Energy Capacity 250 Matter Stores 300 Matter Capacity 300 Sight Range 16 Terrain Scan Range 16 Terrain Scan Density 10 Evasion (%) 42 Targeting Accuracy 6 Recoil Reduction 2 Item Schematics ----------------- Hcp. Storage Unit | -10/Materials | Hacked Robot Schematics ------------------ None Fabricated ------------ Nothing Alien Tech Used ----------------- None Achievements -------------- None Challenges ------------ None Game ------ Seed AdvancedTransmissionCloak Manual? 0 Play Time 00:15:39 Cumulative 274.1 hours Start 2021.09.13 @ 18:07:50 End 2021.09.13 @ 18:37:03 Sessions 2 Manual Loads 0 Difficulty Rogue Special Mode None Game No. 206 Rogue 206 Adventurer 0 Explorer 0 Win Type - Total 5 Types 5/0/0/0/0/0/0/0/0 Lore% 51 Gallery% 73 Achievement% 58 Wizard Run 0 Options --------- ASCII 0 Keyboard 0 Movement Numpad Keybinds 0 Fullscreen 2 Font 18/TerminusBold Map View 76x50 Tactical HUD 1 Map Filters NONE Filters NONE Steam 1 RUN: 28279c4d-13d9-419a-a010-8d152ac3426e